bitfinex/quotes_SOLUSD_20250724
["timestamp","ask_amount","ask_price","bid_price","bid_amount"]
[1753353379385,7.87662401,183.56,183.55,16.78468397]
[1753353380803,0.03,183.56,183.55,17.45468397]
[1753353381165,0.03,183.56,183.55,17.99949464]
[1753353381382,0.03,183.56,183.55,17.45468397]
[1753353381986,0.03,183.56,183.55,57.39468397]
[1753353382800,7.87662401,183.56,183.55,56.70468397]
[1753353383099,0.03,183.56,183.55,56.70468397]
[1753353383275,7.87662401,183.56,183.55,56.70468397]
[1753353383595,7.87662401,183.56,183.55,57.37468397]
[1753353383895,0.03,183.56,183.55,57.37468397]
[1753353384205,0.03,183.56,183.55,71.21422543]
[1753353385678,0.03,183.57,183.56,31.27520798]
[1753353385880,0.03,183.57,183.56,31.94520798]
[1753353386298,0.03,183.57,183.56,24.09858397]
[1753353386472,0.03,183.57,183.56,63.99858397]
[1753353386672,0.03,183.57,183.56,71.84520798]
[1753353387502,0.03,183.57,183.56,63.99858397]
[1753353387702,0.03,183.57,183.56,77.29301796]
[1753353387917,0.03,183.57,183.56,77.83779895]
[1753353388284,0.03,183.58,183.56,77.83779895]
[1753353388479,0.03,183.6,183.59,26.0]
[1753353388703,0.03,183.61,183.6,16.78468397]
[1753353388888,0.03,183.61,183.6,25.30130798]
[1753353389088,0.03,183.61,183.6,26.84970798]
[1753353389314,0.03,183.64,183.63,42.78468397]
[1753353389604,0.03,183.64,183.63,96.50161456]
[1753353389983,0.03,183.64,183.63,97.17161456]
[1753353390195,0.2,183.68,183.67,42.78468397]
[1753353390400,0.2,183.68,183.67,91.0557627]
[1753353390704,0.2,183.68,183.67,91.7257627]
[1753353391223,0.2,183.68,183.67,51.8457627]
[1753353391515,0.2,183.68,183.67,91.7057627]
[1753353391810,0.2,183.68,183.67,97.15030998]
[1753353392116,0.2,183.7,183.68,16.78468397]
[1753353392407,0.2,183.7,183.69,65.05570342]
[1753353392593,0.2,183.7,183.69,65.72570342]
[1753353393785,0.2,183.7,183.69,71.1696579]
[1753353394206,0.2,183.72,183.71,16.78468397]
[1753353394394,0.2,183.72,183.71,64.45130798]
[1753353394597,0.2,183.72,183.71,65.66564416]
[1753353395818,0.2,183.72,183.71,71.08900598]
[1753353396106,0.2,183.72,183.71,31.28900598]
[1753353396316,0.2,183.72,183.71,30.7446698]
[1753353396827,0.2,183.72,183.71,16.78468397]
[1753353397009,0.2,183.72,183.71,96.39900598]
[1753353397202,0.2,183.72,183.71,97.06900598]
[1753353397399,0.2,183.72,183.71,71.06900598]
[1753353397719,0.03,183.73,183.72,22.2277495]
[1753353397906,0.03,183.73,183.72,30.74437351]
[1753353398714,0.03,183.73,183.69,1.26439544]
[1753353399015,0.03,183.73,183.72,42.78468397]
[1753353399513,0.03,183.73,183.72,56.54468397]
[1753353400216,7.87662401,183.73,183.72,56.54468397]
[1753353400591,7.87662401,183.73,183.64,0.72]
[1753353400592,8.59662401,183.73,183.64,0.72]
[1753353400924,7.84662401,183.65,183.62,5.44602984]
[1753353401221,7.84662401,183.64,183.63,56.54468397]
[1753353401516,7.84662401,183.64,183.63,39.76]
[1753353401724,0.72,183.67,183.64,16.78468397]
[1753353401916,7.84662401,183.65,183.64,16.78468397]
[1753353402090,7.84662401,183.65,183.64,56.54468397]
[1753353402419,7.84662401,183.65,183.64,56.52468397]
[1753353402607,6.84662401,183.65,183.64,56.52468397]
[1753353403209,0.72,183.67,183.64,56.52468397]
[1753353403518,7.84662401,183.67,183.65,16.78468397]
[1753353403688,7.84662401,183.66,183.65,16.78468397]
[1753353403885,7.84662401,183.66,183.65,56.52468397]
[1753353404090,8.56662401,183.66,183.65,39.74]
[1753353404889,7.84662401,183.66,183.65,39.74]
[1753353405291,7.84662401,183.68,183.66,16.78468397]
[1753353405490,7.84662401,183.68,183.67,56.52468397]
[1753353405687,0.72,183.72,183.68,16.78468397]
[1753353405891,7.84662401,183.7,183.69,39.72]
[1753353406092,7.84662401,183.7,183.69,56.50468397]
[1753353406308,7.84662401,183.71,183.69,56.50468397]
[1753353406514,0.03,183.73,183.69,61.94863233]
[1753353406718,7.87662401,183.73,183.7,16.78468397]
[1753353406891,0.03,183.73,183.72,16.78468397]
[1753353407093,8.59662401,183.73,183.72,16.78468397]
[1753353407790,8.59662401,183.73,183.69,16.78468397]
[1753353408112,7.84662401,183.71,183.7,56.48468397]
[1753353409006,8.56662401,183.71,183.67,16.78468397]
[1753353409218,0.72,183.7,183.69,16.78468397]
[1753353409418,0.72,183.7,183.69,56.48468397]
[1753353409917,5.44306553,183.72,183.69,56.48468397]
[1753353410120,0.72,183.7,183.61,26.0]
[1753353410296,7.84662401,183.63,183.62,56.48468397]
[1753353410895,7.84662401,183.63,183.62,87.93071381]
[1753353411631,7.84662401,183.63,183.62,56.48468397]
[1753353412007,5.44400588,183.69,183.63,16.78468397]
[1753353412212,7.84662401,183.65,183.64,56.48468397]
[1753353412502,7.84662401,183.65,183.64,16.78468397]
[1753353412713,8.56662401,183.65,183.58,0.06]
[1753353412919,7.84662401,183.59,183.58,22.29190044]
[1753353413096,0.72,183.64,183.58,22.29190044]
[1753353413097,7.84662401,183.6,183.59,16.78468397]
[1753353413800,7.84662401,183.62,183.59,17.50468397]
[1753353414023,7.84662401,183.62,183.58,71.20721647]
[1753353414024,7.84662401,183.63,183.61,16.78468397]
[1753353414197,7.84662401,183.63,183.6,40.42]
[1753353414198,7.84662401,183.63,183.62,56.48468397]
[1753353415295,8.56662401,183.63,183.58,26.06]
[1753353415504,7.84662401,183.6,183.59,56.48468397]
[1753353415722,7.84662401,183.61,183.59,56.48468397]
[1753353416096,7.84662401,183.6,183.59,16.78468397]
[1753353416291,7.84662401,183.62,183.59,56.48468397]
[1753353416491,7.84662401,183.61,183.59,56.48468397]
[1753353416919,7.84662401,183.61,183.59,61.93154848]
[1753353417707,7.84662401,183.61,183.59,56.48468397]
[1753353417915,6.16548945,183.64,183.59,56.48468397]
[1753353417916,7.84662401,183.6,183.59,16.78468397]
[1753353418109,7.84662401,183.6,183.58,0.06]
[1753353418341,7.84662401,183.59,183.58,0.06]
[1753353418508,7.84662401,183.59,183.58,56.54468397]
[1753353418835,7.84662401,183.6,183.58,56.54468397]
[1753353419221,7.84662401,183.6,183.59,16.78468397]
[1753353419519,7.84662401,183.61,183.59,16.78468397]
[1753353419735,7.84662401,183.61,183.6,56.48468397]
[1753353420343,6.16415828,183.69,183.61,16.78468397]
[1753353420521,7.84662401,183.66,183.63,16.78468397]
[1753353420708,7.84662401,183.66,183.65,16.78468397]
[1753353420905,8.56662401,183.66,183.59,0.72]
[1753353421118,7.84662401,183.61,183.6,56.48468397]
[1753353421330,0.72,183.65,183.6,150.93125654]
[1753353421655,0.72,183.64,183.6,150.93125654]
[1753353421848,7.84662401,183.62,183.6,145.48468397]
[1753353422143,7.84662401,183.61,183.6,105.78468397]
[1753353422323,7.84662401,183.61,183.6,16.78468397]
[1753353422518,0.72,183.65,183.6,56.48468397]
[1753353422745,0.72,183.65,183.62,16.78468397]
[1753353422746,7.84662401,183.65,183.62,16.78468397]
[1753353422944,7.84662401,183.67,183.64,16.78468397]
[1753353423125,7.84662401,183.68,183.66,16.78468397]
[1753353423328,7.84662401,183.68,183.67,56.48468397]
[1753353424215,6.16371183,183.7,183.68,16.78468397]
[1753353424418,7.84662401,183.69,183.68,16.78468397]
[1753353424639,8.56662401,183.69,183.68,56.48468397]
[1753353425430,7.84662401,183.69,183.68,56.48468397]
[1753353425631,8.56662401,183.69,183.65,16.78468397]
[1753353425827,0.72,183.68,183.66,39.7]
[1753353426043,0.72,183.67,183.66,56.48468397]
[1753353426924,8.56662401,183.67,183.66,56.48468397]
[1753353427353,14.01117129,183.67,183.66,56.48468397]
[1753353427952,7.84662401,183.69,183.67,16.78468397]
[1753353428141,7.84662401,183.69,183.68,56.48468397]
[1753353428865,8.52662401,183.69,183.62,26.66]
[1753353429208,0.68,183.68,183.63,56.48468397]
[1753353429330,5.44454728,183.67,183.63,56.48468397]
[1753353429534,6.12454728,183.67,183.63,56.48468397]
[1753353430038,7.84662401,183.66,183.63,61.93040221]
[1753353430244,7.84662401,183.66,183.6,16.78468397]
[1753353430245,7.84662401,183.64,183.6,16.78468397]
[1753353430449,7.84662401,183.64,183.62,16.78468397]
[1753353430652,7.84662401,183.64,183.63,56.48468397]
[1753353431444,5.44459909,183.67,183.64,16.78468397]
[1753353431646,5.44459909,183.67,183.66,16.78468397]
[1753353431836,6.12459909,183.67,183.66,16.78468397]
[1753353433142,13.9712231,183.67,183.66,16.78468397]
[1753353433556,13.9712231,183.67,183.6,26.0]
[1753353433870,7.84662401,183.61,183.59,16.78468397]
[1753353434031,7.84662401,183.6,183.59,105.78468397]
[1753353434237,0.68,183.65,183.59,145.48468397]
[1753353434459,7.84662401,183.6,183.59,145.48468397]
[1753353434857,0.68,183.65,183.59,146.14468397]
[1753353435065,7.84662401,183.65,183.61,16.78468397]
[1753353435361,7.84662401,183.64,183.63,16.78468397]
[1753353436368,8.52662401,183.64,183.6,16.78468397]
[1753353436532,0.68,183.64,183.61,39.7]
[1753353436733,0.68,183.64,183.62,16.78468397]
[1753353436936,5.44573326,183.63,183.62,16.78468397]
[1753353437158,6.12573326,183.63,183.62,16.78468397]
[1753353437757,13.97235727,183.63,183.62,16.78468397]
[1753353438633,27.58669043,183.63,183.59,16.78468397]
[1753353438835,7.84662401,183.6,183.58,0.06]
[1753353439048,21.14016778,183.59,183.58,0.06]
[1753353439259,7.84662401,183.59,183.58,0.06]
[1753353439961,7.84662401,183.59,183.58,56.54468397]
[1753353440168,7.84662401,183.6,183.59,16.78468397]
[1753353441074,13.2932471,183.6,183.59,16.78468397]
[1753353441454,13.9732471,183.6,183.58,0.06]
[1753353441656,8.52662401,183.59,183.58,16.84468397]
[1753353442362,8.52662401,183.59,183.58,0.06]
[1753353442976,16.37324802,183.59,183.58,0.06]
[1753353443274,21.82016778,183.59,183.58,0.06]
[1753353443465,7.84662401,183.55,183.54,16.78468397]
[1753353445361,13.29473079,183.55,183.54,16.78468397]
[1753353445761,13.97473079,183.55,183.54,16.78468397]
[1753353446166,13.29473079,183.55,183.54,16.78468397]
[1753353446559,0.68,183.61,183.54,17.44468397]
[1753353446742,7.84662401,183.56,183.55,56.48468397]
[1753353447264,13.97443399,183.56,183.55,16.78468397]
[1753353447574,13.97443399,183.56,183.51,0.06]
[1753353447873,7.84662401,183.52,183.51,16.84468397]
[1753353448094,8.52662401,183.52,183.51,0.06]
[1753353448298,16.37324802,183.52,183.45,39.7]
[1753353448471,15.69324802,183.48,183.45,39.7]
[1753353448790,45.06733493,183.56,183.45,39.7]
[1753353448791,26.0,183.53,183.46,16.78468397]
[1753353448998,7.84662401,183.5,183.49,16.78468397]
[1753353449294,5.44780998,183.56,183.49,57.14468397]
[1753353449504,7.84662401,183.5,183.49,57.14468397]
[1753353449682,0.68,183.55,183.49,57.14468397]
[1753353449993,7.84662401,183.51,183.49,57.14468397]
[1753353450171,7.84662401,183.52,183.51,16.78468397]
[1753353450373,7.84662401,183.52,183.51,56.48468397]
[1753353451899,5.44691976,183.59,183.51,62.59397828]
[1753353452196,7.84662401,183.56,183.53,16.78468397]
[1753353452379,7.84662401,183.57,183.55,16.78468397]
[1753353452704,7.84662401,183.56,183.55,17.44468397]
[1753353452879,7.84662401,183.57,183.55,57.14468397]
[1753353453202,7.84662401,183.57,183.56,17.44468397]
[1753353453503,5.44664907,183.6,183.57,16.78468397]
[1753353453696,6.12664907,183.6,183.56,16.78468397]
[1753353453996,5.44664907,183.6,183.56,16.78468397]
[1753353454210,0.68,183.59,183.53,16.78468397]
[1753353454692,7.84662401,183.54,183.53,16.78468397]
[1753353454895,7.84662401,183.55,183.53,17.44468397]
[1753353455097,8.52662401,183.59,183.54,57.14468397]
[1753353455299,8.52662401,183.59,183.55,16.78468397]
[1753353455470,5.44721647,183.58,183.55,16.78468397]
[1753353455875,0.03,183.56,183.55,16.78468397]
[1753353456105,0.03,183.56,183.55,17.44468397]
[1753353456396,0.03,183.56,183.55,22.89279075]
[1753353457502,0.03,183.56,183.55,29.07099075]
[1753353458287,0.03,183.56,183.55,151.91761476]
[1753353458592,7.84662401,183.62,183.55,125.91761476]
[1753353458774,7.84662401,183.64,183.59,16.78468397]
[1753353458970,7.84662401,183.64,183.61,16.78468397]
[1753353459175,7.84662401,183.64,183.62,40.37]
[1753353459504,2.83977944,183.69,183.63,0.67]
[1753353459691,7.84662401,183.67,183.65,16.78468397]
[1753353460002,7.94662401,183.71,183.67,16.78468397]
[1753353460308,7.94662401,183.71,183.69,16.78468397]
[1753353460477,7.94662401,183.71,183.69,17.45468397]
[1753353460800,7.84662401,183.7,183.69,39.7]
[1753353461999,0.1,183.71,183.68,16.78468397]
[1753353462187,7.84662401,183.7,183.69,39.7]
[1753353462385,7.94662401,183.71,183.69,57.15468397]
[1753353462586,5.19362886,183.73,183.7,25.30130798]
[1753353462789,0.03,183.73,183.72,16.78468397]
[1753353463003,0.03,183.73,183.72,25.84561453]
[1753353464002,0.03,183.73,183.72,31.28868006]
[1753353464188,0.03,183.73,183.72,23.44205605]
[1753353464390,0.03,183.73,183.72,31.28868006]
[1753353464708,0.03,183.73,183.72,37.77118006]
[1753353465413,0.2,183.75,183.74,42.78468397]
[1753353465617,0.2,183.75,183.74,90.83555528]
[1753353465795,0.2,183.75,183.74,91.50555528]
[1753353465999,0.2,183.75,183.74,96.94802833]
[1753353466747,0.2,183.76,183.75,16.78468397]
[1753353466915,0.2,183.76,183.75,64.96130798]
[1753353467415,0.2,183.76,183.75,17.45468397]
[1753353467591,0.2,183.76,183.75,64.96130798]
[1753353467897,0.2,183.76,183.75,159.40348485]
[1753353468489,1e-08,183.76,183.75,159.40348485]
[1753353470597,1e-08,183.76,183.75,119.74348485]
[1753353470794,1e-08,183.76,183.75,159.40348485]
[1753353471694,1e-08,183.76,183.75,159.38348485]
[1753353474006,1e-08,183.76,183.75,151.53686084]
[1753353474206,1e-08,183.76,183.75,159.38348485]
[1753353476907,0.03,183.81,183.76,24.63130798]
[1753353477098,1e-08,183.77,183.76,114.84549605]
[1753353477418,1e-08,183.77,183.76,25.30130798]
[1753353477604,1e-08,183.77,183.76,31.28737676]
[1753353478115,1e-08,183.77,183.76,120.28737676]
[1753353478423,0.03,183.81,183.76,120.28737676]
[1753353478424,0.03,183.81,183.8,42.78468397]
[1753353478604,0.03,183.84,183.83,42.78468397]
[1753353478796,0.03,183.84,183.83,179.79528883]
[1753353478997,0.03,183.84,183.83,179.92130798]
[1753353479211,0.03,183.84,183.83,64.92130798]
[1753353479516,0.03,183.84,183.83,65.46528883]
[1753353479718,0.03,183.84,183.83,31.28509734]
[1753353480115,0.03,183.84,183.83,70.90509734]
[1753353480310,8.56662401,183.84,183.83,56.40468397]
[1753353480521,0.03,183.84,183.83,61.84449248]
[1753353480815,0.03,183.84,183.83,70.90509734]
[1753353481394,0.1,183.86,183.85,42.78468397]
[1753353481616,0.1,183.86,183.85,96.2344464]
[1753353481924,0.1,183.86,183.85,82.40468397]
[1753353482096,0.1,183.86,183.85,82.94860564]
[1753353482420,0.1,183.86,183.85,96.9044464]
[1753353483504,0.1,183.86,183.85,103.3002464]
[1753353483708,1e-08,183.86,183.85,102.75632473]
[1753353484099,0.03,183.92,183.85,91.95266661]
[1753353484398,0.03,183.92,183.91,24.63130798]
[1753353484603,0.03,183.92,183.91,64.7750522]
[1753353484994,0.03,183.92,183.91,65.4450522]
[1753353485500,0.03,183.92,183.91,57.59842819]
[1753353485830,0.03,183.92,183.91,70.88249442]
[1753353487097,0.03,183.92,183.91,73.61814561]
[1753353487296,0.1,183.95,183.94,26.0]
[1753353487498,0.1,183.95,183.94,90.23130798]
[1753353487698,0.03,184.0,183.96,19.02587519]
[1753353487927,0.03,184.0,183.99,50.63130798]
[1753353488129,0.03,184.0,183.99,90.23130798]
[1753353488324,0.03,184.0,183.99,90.90130798]
[1753353488512,0.2,184.03,184.02,26.0]
[1753353488712,0.2,184.03,184.02,82.92810316]
[1753353489251,0.03,184.09,184.07,16.78468397]
[1753353489402,0.03,184.09,184.08,56.38468397]
[1753353489923,0.03,184.09,184.08,16.78468397]
[1753353490125,0.03,184.09,184.08,69.66372866]
[1753353490428,0.03,184.09,184.08,22.76034671]
[1753353490727,8.58662401,184.09,184.08,42.78468397]
[1753353490912,8.58662401,184.09,184.08,56.38468397]
[1753353492022,0.03,184.09,184.08,56.38468397]
[1753353492235,0.03,184.09,184.08,61.81710465]
[1753353492398,0.03,184.09,184.08,56.38468397]
[1753353492600,0.03,184.09,184.08,61.81710465]
[1753353492809,0.03,184.09,184.08,95.66372866]
[1753353493102,0.03,184.09,184.08,96.37372866]
[1753353493325,0.03,184.09,184.08,88.52710465]
[1753353493512,0.03,184.09,184.08,95.66372866]
[1753353493826,0.74,184.09,184.08,82.36468397]
[1753353494211,0.03,184.09,184.08,82.36468397]
[1753353494814,8.58662401,184.09,184.08,82.36468397]
[1753353495224,0.03,184.09,184.08,87.79710465]
[1753353495431,0.03,184.09,184.08,88.50710465]
[1753353495726,0.03,184.09,184.08,96.35372866]
[1753353495921,0.03,184.09,184.08,42.78468397]
[1753353496125,0.74,184.09,184.08,42.78468397]
[1753353496303,8.58662401,184.09,184.08,16.78468397]
[1753353496502,8.58662401,184.09,184.08,16.16468397]
[1753353498021,14.0187496,184.09,184.08,16.16468397]
[1753353498219,0.03,184.09,184.08,55.78468397]
[1753353498424,0.64,184.09,184.08,16.16468397]
[1753353498640,0.64,184.09,184.08,55.76468397]
[1753353498919,13.9187496,184.09,184.08,55.76468397]
[1753353499119,8.48662401,184.09,184.08,16.16468397]
[1753353499321,13.9187496,184.09,184.08,16.16468397]
[1753353500312,13.9187496,184.09,184.07,16.78468397]
[1753353500506,8.45662401,184.08,183.95,1.5731]
[1753353500706,7.84662401,184.04,184.03,42.78468397]
[1753353500925,7.84662401,184.04,184.03,82.40468397]
[1753353501428,19.04243956,184.09,184.03,56.40468397]
[1753353501633,7.84662401,184.04,184.03,56.40468397]
[1753353501932,8.45662401,184.04,184.03,56.40468397]
[1753353502132,13.8902254,184.04,184.03,56.40468397]
[1753353502348,13.8902254,184.04,183.95,16.78468397]
[1753353502508,0.61,184.03,183.97,16.78468397]
[1753353502708,0.61,184.03,183.99,16.78468397]
[1753353502709,7.84662401,184.0,183.99,16.78468397]
[1753353503313,8.45662401,184.0,183.99,16.78468397]
[1753353504033,0.61,184.0,183.95,16.78468397]
[1753353504291,0.61,184.0,183.97,16.78468397]
[1753353504537,7.84662401,183.98,183.97,56.44468397]
[1753353505424,13.58400347,184.04,183.97,56.44468397]
[1753353505425,0.61,184.03,183.97,56.44468397]
[1753353505732,7.84662401,183.99,183.97,56.44468397]
[1753353505921,7.84662401,183.98,183.97,56.44468397]
[1753353506121,7.84662401,183.98,183.95,26.0]
[1753353506321,7.84662401,183.96,183.95,16.78468397]
[1753353506528,0.61,184.04,183.96,16.78468397]
[1753353506737,7.84662401,184.0,183.98,16.78468397]
[1753353507031,7.84662401,184.0,183.99,56.48468397]
[1753353508042,8.45662401,184.0,183.99,16.78468397]
[1753353510247,13.89140661,184.0,183.99,16.78468397]
[1753353512040,7.84662401,184.0,183.99,16.78468397]
[1753353512252,8.45662401,184.0,183.99,16.78468397]
[1753353512623,13.89140661,184.0,183.99,16.78468397]
[1753353512838,13.28140661,184.0,183.99,16.78468397]
[1753353513234,13.89140661,184.0,183.99,16.78468397]
[1753353514456,13.89140661,184.0,183.92,0.71]
[1753353514660,7.84662401,183.93,183.92,56.38468397]
[1753353514952,7.84662401,183.94,183.92,57.09468397]
[1753353515129,7.84662401,183.94,183.93,17.49468397]
[1753353515328,7.84662401,183.94,183.93,16.78468397]
[1753353516258,13.8931794,183.94,183.93,16.78468397]
[1753353516431,6.04655539,183.94,183.93,16.78468397]
[1753353516633,7.84662401,183.94,183.93,16.78468397]
[1753353516946,5.43566885,183.97,183.93,16.78468397]
[1753353517158,7.84662401,183.94,183.93,16.78468397]
[1753353517859,8.45662401,183.94,183.91,0.06]
[1753353518042,7.84662401,183.92,183.91,0.06]
[1753353518239,13.28377059,183.92,183.91,0.06]
[1753353518535,7.84662401,183.92,183.91,0.06]
[1753353519455,6.04633633,183.95,183.91,0.06]
[1753353519760,7.84662401,183.95,183.93,16.78468397]
[1753353520158,7.84662401,183.95,183.93,17.48468397]
[1753353520349,7.84662401,183.97,183.94,0.7]
[1753353520662,7.84662401,183.98,183.95,57.22468397]
[1753353520962,7.84662401,183.99,183.97,16.78468397]
[1753353521139,7.84662401,183.98,183.97,56.52468397]
[1753353522961,7.84662401,183.99,183.97,56.52468397]
[1753353523169,3.44381663,184.05,183.99,16.78468397]
[1753353523371,5.43332755,184.05,184.01,16.78468397]
[1753353523559,5.43303528,184.06,184.02,40.44]
[1753353523742,7.84662401,184.03,184.02,56.52468397]
[1753353524248,7.84662401,184.03,183.98,26.0]
[1753353524249,8.45662401,184.03,183.98,26.0]
[1753353524452,7.84662401,183.99,183.98,16.78468397]
[1753353524753,7.84662401,183.99,183.92,7.6541]
[1753353524754,8.45662401,183.99,183.93,0.7]
[1753353524952,0.61,183.99,183.95,39.76]
[1753353525664,28.38226226,184.03,183.95,39.76]
[1753353525870,0.61,184.02,183.95,39.76]
[1753353526066,0.61,184.02,183.96,16.78468397]
[1753353526260,7.84662401,183.97,183.96,16.78468397]
[1753353527572,0.61,184.02,183.96,16.78468397]
[1753353527769,7.84662401,183.97,183.92,16.78468397]
[1753353528070,0.61,183.97,183.95,16.78468397]
[1753353528269,5.43596434,183.96,183.95,16.78468397]
[1753353528448,5.43572053,183.97,183.95,16.78468397]
[1753353529291,7.84662401,183.96,183.95,16.78468397]
[1753353534151,5.43515446,183.99,183.95,16.78468397]
[1753353534374,7.84662401,183.96,183.95,16.78468397]
[1753353534752,5.43515446,183.99,183.95,16.78468397]
[1753353535069,7.84662401,183.96,183.95,16.78468397]
[1753353538859,7.82262401,183.96,183.95,16.78468397]
[1753353539264,4.79186799,183.96,183.95,16.78468397]
[1753353539466,5.43576028,183.97,183.95,16.78468397]
[1753353539682,4.79186799,183.96,183.95,16.78468397]
[1753353539981,5.43507799,183.99,183.95,16.78468397]
[1753353540180,4.79186799,183.96,183.95,16.78468397]
[1753353540484,4.79186799,183.96,183.95,17.48468397]
[1753353540973,4.79186799,183.96,183.95,16.78468397]
[1753353541654,5.43507799,183.99,183.95,16.78468397]
[1753353542056,4.79186799,183.96,183.95,16.78468397]
[1753353542381,15.62970032,183.96,183.91,16.84468397]
[1753353542575,4.79186799,183.92,183.91,56.44468397]
[1753353542979,23.81774318,183.96,183.91,56.44468397]
[1753353542980,0.61,183.94,183.91,56.44468397]
[1753353543182,4.79186799,183.92,183.91,0.06]
[1753353543357,6.04596434,183.96,183.91,0.76]
[1753353543679,4.79186799,183.92,183.91,0.06]
[1753353544061,0.61,183.92,183.91,16.84468397]
[1753353544264,10.22901457,183.92,183.91,0.06]
[1753353545279,5.43714658,183.92,183.91,0.06]
[1753353545476,10.22901457,183.92,183.91,0.06]
[1753353545969,10.83901457,183.92,183.91,0.06]
[1753353546165,10.22901457,183.92,183.91,0.06]
[1753353548076,5.43714658,183.92,183.91,0.06]
[1753353548277,5.43685097,183.93,183.91,0.06]
[1753353548483,6.04685097,183.93,183.91,0.06]
[1753353548687,4.79186799,183.92,183.91,0.06]
[1753353550474,10.83901457,183.92,183.91,0.06]
[1753353551486,10.22901457,183.92,183.91,0.06]
[1753353552897,10.83901457,183.92,183.91,0.06]
[1753353554781,26.0,183.9,183.87,0.06]
[1753353554993,9.58373598,183.88,183.83,0.06]
[1753353555167,4.79186799,183.84,183.83,0.06]
[1753353555879,4.79186799,183.84,183.83,17.54468397]
[1753353557188,4.79186799,183.89,183.84,16.78468397]
[1753353557489,4.79186799,183.89,183.86,16.78468397]
[1753353557688,4.79186799,183.89,183.88,16.78468397]
[1753353558073,4.79186799,183.89,183.88,17.48468397]
[1753353558394,5.43663444,183.94,183.88,17.48468397]
[1753353558690,4.79186799,183.89,183.88,16.78468397]
[1753353559270,4.79186799,183.89,183.88,17.48468397]
[1753353559888,4.79186799,183.89,183.88,16.78468397]
[1753353560683,4.79186799,183.89,183.87,39.6]
[1753353560684,10.83990159,183.89,183.84,16.78468397]
[1753353561005,4.79186799,183.85,183.84,56.38468397]
[1753353561793,10.23108474,183.85,183.83,16.84468397]
[1753353561998,4.79186799,183.84,183.83,56.44468397]
[1753353562182,4.79186799,183.84,183.83,16.84468397]
[1753353562793,4.79186799,183.84,183.83,0.06]
[1753353563079,5.40186799,183.84,183.83,0.06]
[1753353563281,10.8413806,183.84,183.83,0.06]
[1753353563505,10.2313806,183.84,183.83,0.06]
[1753353567901,10.8413806,183.84,183.83,0.06]
[1753353569214,24.44016214,183.84,183.8,0.06]
[1753353569398,4.79186799,183.81,183.8,0.06]
[1753353569790,5.40186799,183.81,183.8,0.06]
[1753353569987,10.19373598,183.81,183.76,0.2]
[1753353570288,1.5919,183.82,183.76,0.2]
[1753353570490,4.79186799,183.77,183.76,0.2]
[1753353570692,10.23345257,183.77,183.76,0.2]
[1753353572895,10.84345257,183.77,183.76,0.2]
[1753353573598,10.84345257,183.77,183.72,0.2]
[1753353573897,4.79186799,183.73,183.72,0.2]
[1753353574320,5.44188071,183.76,183.72,0.2]
[1753353574517,4.79186799,183.75,183.74,16.78468397]
[1753353574699,4.79186799,183.75,183.74,17.48468397]
[1753353576720,4.79186799,183.75,183.73,16.78468397]
[1753353576915,4.79186799,183.74,183.73,17.48468397]
[1753353577499,4.79186799,183.74,183.73,16.78468397]
[1753353578607,4.79186799,183.74,183.72,0.2]
[1753353578908,5.40186799,183.73,183.72,0.2]
[1753353579701,10.23463727,183.73,183.72,0.2]
[1753353579894,10.84463727,183.73,183.71,0.06]
[1753353580216,4.79186799,183.72,183.71,0.06]
[1753353581729,10.23493352,183.72,183.71,0.06]
[1753353582707,4.79186799,183.72,183.71,0.06]
[1753353584229,10.23493352,183.72,183.71,0.06]
[1753353585433,10.84493352,183.72,183.71,0.06]
[1753353585935,10.23493352,183.72,183.71,0.06]
[1753353587930,10.84493352,183.72,183.71,0.06]
[1753353590530,10.23493352,183.72,183.71,0.06]
[1753353591633,10.84493352,183.72,183.71,0.06]
[1753353592231,10.23493352,183.72,183.71,0.06]
[1753353592420,4.79186799,183.72,183.71,0.73]
[1753353592628,10.23493352,183.72,183.71,0.06]
[1753353594420,4.79186799,183.72,183.71,0.06]
[1753353594720,4.79186799,183.72,183.71,0.73]
[1753353595029,4.79186799,183.72,183.71,17.51468397]
[1753353595714,0.61,183.83,183.72,16.78468397]
[1753353595914,40.23,183.83,183.73,4.79186799]
[1753353596113,4.79186799,183.77,183.76,16.78468397]